bitfinex/quotes_ETHUSD_20220218
["timestamp","ask_amount","ask_price","bid_price","bid_amount"]
[1645221414985,2.115,2791.3,2791.2,0.0293451]
[1645221415186,1.115,2791.3,2791.2,0.0293451]
[1645221415384,2.115,2791.3,2791.2,0.0293451]
[1645221415585,1.115,2791.3,2791.2,0.0293451]
[1645221415784,2.115,2791.3,2791.2,0.0293451]
[1645221416589,1.815,2791.3,2791.2,0.0293451]
[1645221416788,2.115,2791.3,2791.2,0.0293451]
[1645221418616,2.41122,2791.3,2791.2,0.0293451]
[1645221419422,2.41122,2791.3,2791.1,3.6]
[1645221419727,1.15813346,2791.0,2789.7,0.46528378]
[1645221419923,4.53471622,2790.5,2789.7,0.46528378]
[1645221420119,0.89673,2790.7,2789.2,0.46528378]
[1645221420120,8.2249024,2789.8,2789.2,0.46528378]
[1645221420318,0.3,2789.7,2789.2,0.46528378]
[1645221420524,0.3,2789.7,2788.7,4.0868]
[1645221420525,1.3,2789.7,2788.7,4.0868]
[1645221420722,6.431,2789.2,2788.9,0.00821946]
[1645221420920,1.515,2789.1,2788.9,0.00821946]
[1645221421122,7.84303,2789.0,2788.9,0.00821946]
[1645221421420,8.84303,2789.0,2788.9,0.00821946]
[1645221421618,1.7940234,2788.9,2787.8,7.49]
[1645221421920,6.946,2788.8,2788.4,0.00822083]
[1645221422120,7.246,2788.8,2788.4,0.00822083]
[1645221422369,0.8970117,2788.7,2788.4,0.00822083]
[1645221422556,0.515,2788.6,2788.4,0.00822083]
[1645221422756,0.815,2788.6,2788.3,1.5]
[1645221423459,2.115,2788.6,2788.3,1.5]
[1645221423657,10.01921,2788.5,2788.3,1.5]
[1645221423866,1.515,2788.4,2788.3,1.5]
[1645221424058,0.89728,2788.2,2787.5,3.256]
[1645221424258,0.89728,2788.2,2787.9,0.00729728]
[1645221424259,0.89724,2788.0,2787.9,0.00729728]
[1645221424461,1.3,2788.4,2787.9,0.00729728]
[1645221424659,0.3,2788.0,2787.9,0.00729728]
[1645221424863,0.515,2788.0,2787.9,0.00729728]
[1645221425263,8.74044,2788.0,2787.5,0.00388016]
[1645221425465,6.431,2787.9,2787.6,0.00182452]
[1645221425663,0.515,2787.8,2787.6,0.00182452]
[1645221426124,1.41243,2787.8,2787.6,0.00182452]
[1645221426326,1.41243,2787.8,2787.5,0.00390201]
[1645221426327,2.6098747,2787.8,2787.5,0.00390201]
[1645221426528,4.48733,2787.7,2787.6,0.00174129]
[1645221426728,4.48733,2787.7,2787.1,0.01086821]
[1645221426729,3.69756,2787.6,2787.1,0.01086821]
[1645221427033,0.515,2787.5,2787.1,0.01086821]
[1645221427234,0.3,2787.3,2787.1,0.01086821]
[1645221427542,8.74117,2787.2,2787.1,0.00390201]
[1645221427729,8.74117,2787.2,2786.7,0.00390201]
[1645221427933,8.74117,2787.2,2786.4,0.00390201]
[1645221427934,6.431,2786.9,2786.4,0.00390201]
[1645221428131,0.515,2786.8,2786.4,0.00390201]
[1645221428333,1.515,2786.8,2786.4,0.00390201]
[1645221428531,1.515,2786.8,2786.2,0.00390201]
[1645221429132,0.8978,2786.5,2786.2,0.00390201]
[1645221429332,0.515,2786.4,2785.9,0.00390201]
[1645221429532,0.815,2786.4,2785.9,0.00390201]
[1645221429731,0.80176988,2786.4,2785.5,3.85707681]
[1645221429974,0.80176988,2786.4,2785.6,0.00390201]
[1645221430181,0.89786,2786.3,2785.6,0.00390201]
[1645221430375,4.4892313,2786.4,2786.3,0.72825795]
[1645221430576,1.0,2786.8,2786.3,4.58143275]
[1645221430774,5.201,2787.7,2786.3,0.72825795]
[1645221430978,2.69267,2787.3,2786.4,0.00390201]
[1645221431174,0.515,2787.2,2786.4,0.00390201]
[1645221431375,0.515,2787.2,2786.4,3.85707681]
[1645221431679,15.1639164,2788.1,2786.9,0.00204015]
[1645221431680,0.515,2788.1,2786.9,0.00204015]
[1645221432477,0.515,2788.1,2786.7,0.00390201]
[1645221432478,0.89724,2788.0,2786.7,0.00390201]
[1645221432679,0.89724,2788.0,2787.4,0.00203978]
[1645221433277,2.09447,2787.8,2787.4,0.00203978]
[1645221433719,3.09447,2787.8,2786.5,0.00390201]
[1645221433920,3.09447,2787.8,2787.5,0.00203971]
[1645221434219,3.8893093,2787.8,2787.5,0.00203971]
[1645221434419,1.0,2787.7,2787.5,0.00203971]
[1645221434621,1.89738,2787.7,2787.5,0.00203971]
[1645221434820,4.58967,2787.7,2786.8,0.00390201]
[1645221435123,4.58967,2787.7,2787.5,0.00203971]
[1645221436120,0.89738,2787.3,2786.6,0.66959122]
[1645221436321,0.89738,2787.3,2787.0,0.00816007]
[1645221436322,0.3,2787.2,2787.0,0.00816007]
[1645221437121,1.19746,2787.2,2787.0,0.00816007]
[1645221437370,1.19746,2787.2,2786.4,0.00390201]
[1645221437371,0.89749,2787.0,2786.4,0.00390201]
[1645221437564,1.19749,2787.0,2786.5,0.00816153]
[1645221438364,1.19749,2787.0,2786.4,3.60390201]
[1645221438564,2.09501,2787.0,2786.4,3.60390201]
[1645221438763,2.09501,2787.0,2786.6,0.00204033]
[1645221439668,2.09501,2787.0,2786.4,3.60390201]
[1645221439870,1.79509,2786.9,2786.7,0.0020403]
[1645221440870,2.69276,2786.9,2786.4,3.60390201]
[1645221441113,2.69276,2786.9,2786.7,0.0020403]
[1645221442014,2.69276,2786.9,2786.4,3.60390201]
[1645221442313,2.69276,2786.9,2786.7,0.0020403]
[1645221442514,0.8976712,2786.8,2786.7,0.0020403]
[1645221442717,2.6930212,2786.8,2786.7,0.0020403]
[1645221442914,2.9930212,2786.8,2786.7,0.0020403]
[1645221443316,2.9930212,2786.8,2786.4,3.60390201]
[1645221443317,0.89766,2786.7,2786.4,3.60390201]
[1645221443614,0.89766,2786.7,2786.6,0.02474095]
[1645221444515,0.89766,2786.7,2786.6,0.02270062]
[1645221444976,0.89772,2787.1,2786.6,0.02270062]
[1645221444977,0.89734,2787.3,2786.6,0.02270062]
[1645221445573,0.515,2788.5,2787.0,5.0]
[1645221445776,0.77242134,2788.4,2787.1,0.00390201]
[1645221445972,0.89717,2788.1,2787.1,3.83280479]
[1645221446169,0.89717,2787.8,2787.2,0.00390201]
[1645221446568,0.89717,2787.8,2787.1,8.82890278]
[1645221446569,0.89717,2787.8,2787.1,5.3]
[1645221446769,2.69177,2788.6,2787.2,0.00390201]
[1645221446971,0.89708,2788.4,2787.2,3.83280479]
[1645221447171,0.89707,2788.3,2787.4,0.00203978]
[1645221447671,0.3,2788.2,2787.4,0.00203978]
[1645221448069,0.3,2788.2,2787.2,7.49]
[1645221448274,0.89718,2788.1,2787.5,0.00203971]
[1645221448472,1.79432,2788.1,2787.5,0.00203971]
[1645221448717,0.3,2788.0,2787.5,0.00203971]
[1645221449319,0.3,2788.0,2787.5,3.6]
[1645221449520,1.19724,2788.0,2787.5,3.60203971]
[1645221450521,1.19724,2788.0,2787.5,3.6]
[1645221450724,1.79458,2787.8,2787.5,3.60203971]
[1645221451522,1.19724,2788.0,2787.5,3.60203971]
[1645221451523,0.89724,2788.0,2787.5,3.60203971]
[1645221451823,0.1250225,2788.7,2787.6,3.82890278]
[1645221452663,0.1250225,2788.7,2787.5,3.60203971]
[1645221452862,0.1250225,2788.7,2787.6,0.77218313]
[1645221453063,0.1250225,2788.7,2787.6,4.60924437]
[1645221453263,0.1250225,2788.7,2787.6,0.78034159]
[1645221453467,0.89703,2788.4,2787.6,0.78034159]
[1645221453663,2.69135,2788.4,2787.6,0.78034159]
[1645221453865,2.99135,2788.4,2787.6,0.78034159]
[1645221454065,2.99135,2788.4,2787.6,0.77218313]
[1645221454664,0.89716,2788.2,2787.6,0.77218313]
[1645221455066,1.79447,2788.1,2787.6,0.77218313]
[1645221455266,0.3,2788.0,2787.6,0.77218313]
[1645221455465,0.3,2788.0,2787.5,3.60203971]
[1645221455867,1.19724,2788.0,2787.5,3.60203971]
[1645221456523,1.19724,2788.0,2787.5,3.6]
[1645221456822,1.19724,2788.0,2787.5,3.60203971]
[1645221456823,2.09446,2788.0,2787.5,3.60203971]
[1645221457023,1.19722,2788.0,2787.5,3.60203971]
[1645221457622,1.19722,2788.0,2787.5,3.6]
[1645221457822,1.19722,2788.0,2787.5,3.60203971]
[1645221458823,1.19722,2788.0,2787.5,3.6]
[1645221459026,1.19722,2788.0,2787.5,3.60203971]
[1645221459426,2.09444,2788.0,2787.5,3.60203971]
[1645221460072,2.09444,2788.0,2787.5,3.6]
[1645221460275,2.09444,2788.0,2787.5,3.60203971]
[1645221460469,1.19722,2788.0,2787.5,3.60203971]
[1645221461273,1.19722,2788.0,2787.5,3.6]
[1645221461472,1.19722,2788.0,2787.5,3.60203971]
[1645221462470,1.19722,2788.0,2787.5,3.6]
[1645221462670,1.19722,2788.0,2787.5,3.60203971]
[1645221462872,2.09445,2788.0,2787.5,3.60203971]
[1645221463171,5.92335278,2788.0,2787.5,3.60203971]
[1645221463371,0.515,2787.9,2787.5,3.60203971]
[1645221463632,0.515,2787.9,2787.0,0.00390201]
[1645221463633,13.79501,2787.8,2787.0,0.00390201]
[1645221463835,13.79501,2787.8,2786.8,0.00390201]
[1645221463836,0.89754,2787.5,2786.8,0.00390201]
[1645221464038,0.515,2787.4,2787.2,0.00815963]
[1645221464231,0.89784,2787.1,2786.4,0.00390201]
[1645221464442,0.515,2787.0,2786.4,0.00390201]
[1645221464834,0.89781,2786.9,2786.4,0.00390201]
[1645221465037,0.815,2787.0,2786.4,0.00390201]
[1645221465038,2.31056,2786.8,2786.4,0.00390201]
[1645221465232,0.515,2786.7,2786.4,0.00390201]
[1645221465834,1.515,2786.7,2786.4,0.00390201]
[1645221466044,0.515,2786.7,2786.4,0.00390201]
[1645221466237,2.41278,2786.7,2786.4,0.00390201]
[1645221466441,0.89772,2786.6,2786.4,0.00390201]
[1645221466637,0.89772,2786.6,2786.1,0.00390201]
[1645221466638,0.515,2786.5,2786.1,0.00390201]
[1645221467479,1.4127,2786.5,2786.3,0.73027303]
[1645221467877,3.80611746,2786.4,2786.3,0.73027303]
[1645221468076,0.515,2786.4,2786.3,0.73027303]
[1645221468275,1.515,2786.4,2786.3,0.73027303]
[1645221468476,1.515,2786.4,2786.3,0.72825795]
[1645221469477,1.815,2786.4,2786.3,0.72825795]
[1645221469878,1.515,2786.4,2786.3,0.72825795]
[1645221472922,1.515,2786.4,2786.2,0.00201512]
[1645221472923,7.0,2786.3,2786.2,0.00201512]
[1645221473122,7.0,2786.3,2785.8,0.00806168]
[1645221473123,4.0,2786.2,2785.8,0.00806168]
[1645221473323,4.0,2786.2,2785.0,2.4822422]
[1645221473324,2.31132,2786.1,2785.1,0.00390201]
[1645221473524,0.3,2786.0,2785.7,0.00806197]
[1645221473724,0.515,2785.9,2785.7,0.00806197]
[1645221474326,1.41318,2785.9,2785.7,0.00806197]
[1645221474523,1.41318,2785.9,2785.2,0.00390201]
[1645221474873,0.89817,2785.8,2785.2,0.00390201]
[1645221475074,0.515,2785.7,2785.2,0.00390201]
[1645221475876,0.515,2785.7,2785.3,0.00201073]
[1645221476076,0.89799,2785.6,2785.3,1.53089023]
[1645221476278,0.515,2785.7,2785.6,0.72854726]
[1645221477678,1.41298,2785.7,2785.6,0.72854726]
[1645221480824,0.30316616,2785.8,2785.6,0.72854726]
[1645221481225,0.00316616,2785.8,2785.6,0.72854726]
[1645221481824,0.00316616,2785.8,2785.6,0.73055781]
[1645221482882,0.00316616,2785.8,2785.6,0.72854726]
[1645221483083,0.00316616,2785.8,2785.6,0.73055781]
[1645221484082,0.00316616,2785.8,2785.6,0.72854726]
[1645221484283,0.00316616,2785.8,2785.6,0.73055781]
[1645221484482,0.00316616,2785.8,2785.6,0.68055781]
[1645221485082,1.89794,2786.5,2785.7,4.0]
[1645221485083,1.79595,2786.0,2785.7,4.0]
[1645221485283,1.41298,2786.4,2785.6,0.68244927]
[1645221485484,0.515,2786.4,2785.7,0.00390201]
[1645221486320,0.98409616,2786.3,2785.7,0.00390201]
[1645221486620,0.89789,2785.9,2785.7,0.00390201]
[1645221487223,1.19789,2785.9,2785.7,0.00390201]
[1645221488022,1.19789,2785.9,2785.7,0.00591249]
[1645221488823,1.19789,2785.9,2785.7,0.00390201]
[1645221489023,0.3,2785.9,2785.7,0.00390201]
[1645221489223,0.89786,2786.1,2785.7,0.00591249]
[1645221489224,1.19786,2786.1,2785.7,0.00591249]
[1645221489426,0.3,2786.1,2785.7,0.00591249]
[1645221489622,0.515,2786.4,2785.7,0.00591249]
[1645221489623,0.815,2786.4,2785.7,0.00591249]
[1645221489871,0.515,2786.4,2785.7,0.00591249]
[1645221490066,0.515,2786.4,2785.7,0.00390201]
[1645221490464,0.515,2786.4,2785.9,0.0020103]
[1645221490666,0.515,2786.4,2785.9,0.00591231]
[1645221490667,0.89779,2786.3,2785.9,0.00591231]
[1645221491366,0.89779,2786.3,2785.9,0.00390201]
[1645221491567,0.89779,2786.3,2786.0,0.00201026]
[1645221492065,0.515,2786.2,2786.0,0.00201026]
[1645221492569,0.515,2786.2,2785.7,0.00390201]
[1645221492570,1.79629,2786.1,2785.7,0.00390201]
[1645221492770,2.09629,2786.1,2786.0,0.00201026]
[1645221492965,2.61129,2786.1,2786.0,0.00201026]
[1645221493367,3.61129,2786.1,2786.0,0.00201026]
[1645221493647,2.61129,2786.1,2785.7,0.00390201]
[1645221493837,0.89799,2786.0,2785.7,0.00390201]
[1645221494139,0.89799,2786.0,2785.9,0.0020103]
[1645221494439,0.89799,2786.0,2785.9,0.02784687]
[1645221494840,0.89799,2786.0,2785.9,0.02583657]
[1645221495942,1.41299,2786.0,2785.9,0.02583657]
[1645221496942,1.41299,2786.0,2785.9,3.62583657]
[1645221500374,2.41299,2786.0,2785.9,3.62583657]
[1645221501234,1.89799,2786.0,2785.9,3.62583657]
[1645221503029,2.19799,2786.0,2785.9,3.62583657]
[1645221504329,2.71299,2786.0,2785.9,3.62583657]
[1645221505569,2.71299,2786.0,2785.9,3.6249274]
[1645221509328,2.71299,2786.0,2785.9,3.6]
[1645221510029,2.66299,2786.0,2785.9,3.6]
[1645221521687,9.6947,2785.9,2785.8,0.00201037]
[1645221521985,18.83894,2785.9,2785.8,0.00201037]
[1645221522184,19.13894,2785.9,2785.8,0.00201037]
[1645221522391,24.253317,2785.9,2785.8,0.00201037]
[1645221522688,24.253317,2785.9,2785.7,0.00390201]
[1645221522689,5.0,2785.8,2785.7,0.00591245]
[1645221522887,13.060377,2785.8,2785.7,0.00591245]
[1645221523087,5.89835,2785.7,2785.6,0.67854726]
[1645221523286,14.14435,2785.7,2785.6,0.67854726]
[1645221523926,9.14435,2785.7,2785.6,0.62854726]
[1645221525326,2.6953708,2785.5,2784.6,0.0433474]
[1645221525529,2.31185,2785.4,2784.6,0.0433474]
[1645221525733,0.3,2785.3,2785.0,2.311036]
[1645221525925,0.6,2785.3,2785.0,2.311036]
[1645221526125,0.515,2785.2,2785.0,2.311036]
[1645221526328,1.79685,2785.1,2785.0,2.311036]
[1645221526532,0.515,2785.1,2785.0,2.311036]
[1645221526726,0.515,2785.1,2785.0,3.83629385]
[1645221527574,2.31153,2785.1,2785.0,3.83629385]
[1645221528177,0.515,2785.1,2785.0,3.83629385]
[1645221528376,0.815,2785.1,2785.0,3.83629385]
[1645221528777,1.71325,2785.1,2785.0,3.83629385]
[1645221529280,1.71325,2785.1,2785.0,2.311036]
[1645221530579,3.01325,2785.1,2785.0,2.311036]
[1645221531231,1.71325,2785.1,2785.0,5.911036]
[1645221531431,1.71325,2785.1,2785.0,7.43630613]
[1645221531732,1.71325,2785.1,2785.0,5.911036]
[1645221531933,1.41325,2785.1,2785.0,7.43630692]
[1645221532131,0.1873861,2785.6,2785.0,11.17233076]
[1645221532132,0.515,2785.3,2785.0,11.17233076]
[1645221532339,2.97260436,2786.4,2785.1,1.52527092]
[1645221532531,0.515,2786.4,2785.1,1.52527092]
[1645221532730,0.515,2786.4,2785.1,5.23303146]
[1645221532933,0.515,2786.4,2785.2,1.52527092]
[1645221533133,0.515,2786.4,2785.8,0.87031148]
[1645221533331,0.89783,2786.3,2785.8,0.87031148]
[1645221533536,0.89783,2786.3,2785.3,3.70776054]
[1645221533537,0.89783,2786.3,2785.6,0.0020005]
[1645221533734,0.515,2786.2,2785.6,0.0020005]
[1645221534334,3.63133349,2786.2,2785.6,0.0020005]
[1645221534539,3.63133349,2786.2,2785.1,3.2348]
[1645221534540,7.26936794,2786.0,2785.1,3.2348]
[1645221534735,0.515,2785.9,2785.1,3.2348]
[1645221534979,0.515,2785.9,2785.6,0.0020005]
[1645221534980,1.515,2785.9,2785.6,0.0020005]
[1645221535779,0.89817,2785.8,2785.0,5.96654926]
[1645221535980,0.89817,2785.8,2785.6,0.0020005]
[1645221535981,0.515,2785.7,2785.6,0.0020005]
[1645221536184,2.31128,2785.7,2785.6,0.0020005]
[1645221536981,2.31128,2785.7,2785.1,1.52515952]
[1645221537185,2.31128,2785.7,2785.0,5.96654926]
[1645221537186,2.31128,2785.7,2785.5,0.00200053]
[1645221537380,3.61128,2785.7,2785.5,0.00200053]
[1645221537985,0.89813,2785.6,2785.5,0.00200053]
[1645221538181,0.89813,2785.6,2785.0,5.97455274]
[1645221538182,1.41313,2785.6,2785.1,1.52521875]
[1645221538387,1.41313,2785.6,2785.5,0.00200057]
[1645221538639,1.41313,2785.6,2785.5,1.50200057]
[1645221539433,1.41313,2785.6,2785.5,1.5]
[1645221544418,2.71313,2785.6,2785.5,1.5]
[1645221544612,2.71313,2785.6,2785.4,0.00180055]
[1645221544613,4.39842,2785.5,2785.4,0.00180055]
[1645221544811,6.21342,2785.5,2785.4,0.00180055]
[1645221545616,7.11183,2785.5,2785.4,0.00180055]
[1645221545814,7.11183,2785.5,2785.3,0.00180061]
[1645221546015,2.7966,2785.4,2785.3,0.00180061]
[1645221546242,3.6116,2785.4,2785.3,0.00180061]
[1645221546644,4.50991,2785.4,2785.0,5.911036]
[1645221546942,1.19828,2785.3,2785.2,0.00168929]
[1645221547146,3.50984,2785.3,2785.2,0.00168929]
[1645221547341,4.80984,2785.3,2785.2,0.00168929]
[1645221548243,1.79658,2785.2,2785.1,0.00168935]
[1645221548442,3.31158,2785.2,2785.1,0.00168935]
[1645221548743,2.31158,2785.2,2785.1,0.00168935]
[1645221549141,3.31158,2785.2,2785.1,0.00168935]
[1645221549345,3.61158,2785.2,2785.0,5.91272541]
[1645221550284,2.31158,2785.2,2785.0,5.91272541]
[1645221550488,0.515,2785.2,2785.0,5.911036]
[1645221550685,0.515,2785.2,2785.0,5.91274173]
[1645221551085,0.89828,2785.3,2785.0,5.91274173]
[1645221551489,0.89828,2785.3,2785.0,5.911036]
[1645221551699,1.19828,2785.3,2785.0,5.911036]
[1645221551887,1.515,2785.7,2785.0,5.9127417]
[1645221551888,0.89809,2785.6,2785.0,5.9127417]
[1645221552090,2.81633349,2786.2,2785.1,1.52513971]
[1645221552091,4.81860756,2786.2,2785.1,1.52513971]
[1645221552288,1.515,2786.1,2785.1,1.52513971]
[1645221552489,1.515,2786.1,2785.0,13.4027417]
[1645221552692,0.515,2786.1,2785.1,1.52511741]
[1645221552888,1.4130583,2786.1,2785.5,0.00170543]
[1645221553086,0.3,2786.0,2785.5,0.00170543]
[1645221553292,0.89799,2785.9,2785.5,0.00170543]
[1645221553733,1.19799,2785.9,2785.1,1.55615125]
[1645221553928,0.89799,2785.9,2785.2,1.52511665]
[1645221554131,0.89799,2785.9,2785.6,0.00171406]
[1645221555027,0.89799,2785.9,2785.2,1.52511685]
[1645221555233,1.19799,2785.9,2785.6,0.00171406]
[1645221555432,1.49799,2785.9,2785.6,0.00171406]
[1645221555629,2.3961649,2785.9,2785.6,0.00171406]
[1645221555829,3.3961649,2785.9,2785.6,0.00171406]
[1645221556230,0.8981,2785.6,2785.1,0.03100512]
[1645221556532,1.1981,2785.6,2785.1,0.03100512]
[1645221556931,2.1981,2785.6,2785.1,0.03100512]
[1645221557131,1.1981,2785.6,2785.1,0.03100512]
[1645221557380,0.515,2786.1,2785.2,1.5250759]
[1645221557381,0.89798,2785.8,2785.2,1.5250759]
[1645221557581,2.31099,2786.1,2785.2,1.5250759]
[1645221557783,2.31099,2786.1,2785.2,1.52677783]
[1645221558381,0.89797,2785.8,2785.2,1.52677783]
[1645221558580,0.89797,2785.8,2785.2,1.5250759]
[1645221558581,1.7961313,2785.8,2785.2,1.5250759]
[1645221558781,1.7961313,2785.8,2785.1,0.03100512]
[1645221558782,1.79637,2785.7,2785.1,0.03100512]
[1645221558981,1.79637,2785.7,2785.5,0.00170174]
[1645221559582,0.89819,2785.6,2785.5,0.00170174]
[1645221559782,0.89819,2785.6,2785.1,1.52517152]
[1645221560184,0.89819,2785.6,2785.5,0.00170178]
[1645221560984,0.89819,2785.6,2785.0,6.63266971]
[1645221561239,0.89819,2785.6,2785.4,0.00170361]
[1645221562236,0.89819,2785.6,2785.1,1.52520146]
[1645221562437,0.31681746,2785.8,2785.4,0.00170364]
[1645221562836,0.01681746,2785.8,2785.4,0.00170364]
[1645221563436,0.01681746,2785.8,2785.1,1.52520146]
[1645221563838,1.19804,2785.6,2785.5,0.00170358]
[1645221564637,1.19804,2785.6,2785.3,0.03178041]
[1645221564878,1.19804,2785.6,2785.4,0.00170335]
[1645221565882,1.19804,2785.6,2785.3,0.03178041]
[1645221566080,1.19804,2785.6,2785.4,0.00170338]
[1645221566879,1.71304,2785.6,2785.4,0.00170338]
[1645221567079,1.71304,2785.6,2785.3,0.03178041]
[1645221567278,1.71304,2785.6,2785.4,0.00170338]
[1645221567779,1.71304,2785.6,2785.4,0.00030597]
[1645221568182,1.71304,2785.6,2785.3,0.03178041]
[1645221569342,1.71304,2785.6,2785.0,5.911036]
[1645221569540,1.71304,2785.6,2785.1,1.52523253]
[1645221571145,2.71304,2785.6,2785.1,1.52523253]
[1645221572385,2.71304,2785.6,2785.2,0.00199725]
[1645221572984,2.71304,2785.6,2785.1,1.52523253]
[1645221573492,3.01304,2785.6,2785.3,0.00199722]
[1645221574285,3.01304,2785.6,2785.0,5.911036]
[1645221574488,0.89826,2785.4,2785.3,0.00199722]
[1645221574688,2.01326,2785.4,2785.3,0.00199722]
[1645221574888,3.01326,2785.4,2785.3,0.00199722]
[1645221575388,3.01326,2785.4,2785.0,5.911036]
[1645221575790,3.01326,2785.4,2785.2,0.00199725]
[1645221576640,3.01326,2785.4,2785.0,5.911036]
[1645221576838,3.01326,2785.4,2785.2,0.00199729]
[1645221577942,3.01326,2785.4,2785.0,5.911036]
[1645221578140,3.01326,2785.4,2785.2,0.00199729]
[1645221579141,3.01326,2785.4,2785.0,6.72550646]
[1645221579440,0.815,2785.4,2785.2,0.00199729]
[1645221579886,0.515,2785.4,2785.2,0.00199729]
[1645221580287,0.515,2785.4,2785.1,1.5252768]
[1645221580487,0.515,2785.4,2785.2,0.00199729]
[1645221580690,1.4131,2785.4,2785.2,0.00199729]
[1645221580888,1.7131,2785.4,2785.2,0.00199729]
[1645221581091,1.1981,2785.4,2785.2,0.00199729]
[1645221581889,1.515,2785.7,2785.2,0.00199729]
[1645221581890,1.7963,2785.5,2785.2,0.00199729]
[1645221582291,2.0963,2785.5,2785.2,0.00199729]
[1645221582491,0.515,2785.4,2785.2,0.00199729]
[1645221582688,0.515,2785.4,2785.0,5.911036]
[1645221582890,1.815,2785.4,2785.2,0.00199725]
[1645221583090,1.71311,2785.4,2785.2,0.00199725]
[1645221583290,2.71311,2785.4,2785.2,0.00199725]
[1645221583735,2.71311,2785.4,2785.3,0.02962295]
[1645221585940,1.71311,2785.4,2785.3,0.02962295]
[1645221586341,1.19811,2785.4,2785.3,0.02962295]
[1645221587589,0.3,2785.4,2785.3,0.02962295]
[1645221587791,1.19805,2785.6,2785.3,0.02962295]
[1645221588790,1.19805,2785.6,2785.2,0.02723291]
[1645221588791,1.19805,2785.6,2785.2,0.06182884]
[1645221588992,1.19805,2785.6,2785.3,0.00199722]
[1645221589398,0.515,2785.5,2785.3,0.00199722]
[1645221589595,4.1083972,2785.5,2785.3,0.00199722]
[1645221589794,6.3,2785.4,2785.2,0.06182884]
[1645221589994,0.515,2785.3,2785.2,0.06182884]
[1645221590192,3.0,2785.2,2785.0,5.911036]
[1645221590391,1.515,2785.1,2785.0,5.911036]
[1645221590592,8.246,2785.1,2785.0,5.911036]
[1645221591439,9.14448,2785.1,2785.0,5.911036]
[1645221593437,9.14448,2785.1,2785.0,5.62545453]
[1645221594642,7.84448,2785.1,2785.0,5.62545453]
[1645221594891,0.89848,2785.1,2785.0,5.62545453]
[1645221596689,2.19848,2785.1,2785.0,5.62545453]
[1645221598392,2.71348,2785.1,2785.0,5.62545453]
[1645221599436,2.19848,2785.1,2785.0,5.62545453]
[1645221600536,1.89848,2785.1,2785.0,5.62545453]
[1645221600737,0.89848,2785.1,2785.0,5.62235884]
[1645221602236,1.19848,2785.1,2785.0,5.62235884]
[1645221602491,2.19848,2785.1,2785.0,5.62235884]
[1645221602691,2.50735668,2785.1,2785.0,5.62235884]
[1645221602888,3.02235668,2785.1,2785.0,5.62235884]
[1645221603587,6.710961,2785.1,2785.0,5.48525785]
[1645221603789,3.02235668,2785.1,2785.0,5.48525785]
[1645221603990,9.45335668,2785.1,2785.0,5.48525785]
[1645221604290,9.45335668,2785.1,2784.6,0.0433474]
[1645221604291,0.54852578,2784.9,2784.6,0.0433474]
[1645221604488,1.7972,2784.7,2784.6,0.0433474]
[1645221604693,2.92107668,2784.7,2784.6,0.0433474]
[1645221604888,3.92107668,2784.7,2784.6,0.0433474]
[1645221605291,3.95719952,2784.7,2784.6,0.0433474]
[1645221605889,3.95719952,2784.7,2784.6,0.08597916]
[1645221607044,10.38819952,2784.7,2784.6,0.08597916]
[1645221607547,11.06066028,2784.7,2784.6,0.08597916]
[1645221607747,11.14677644,2784.7,2784.6,0.03106968]
[1645221607944,11.14677644,2784.7,2783.8,0.0193222]
[1645221607945,2.5,2784.4,2783.8,0.0193222]
[1645221608144,2.31252,2784.3,2783.8,0.0193222]
[1645221608346,3.3,2784.2,2783.8,0.0193222]
[1645221608549,4.1107586,2784.1,2783.8,0.0193222]
[1645221608747,0.3,2784.0,2783.8,0.0193222]
[1645221608944,0.515,2783.9,2783.8,0.0193222]
[1645221609344,1.815,2783.9,2783.8,0.0193222]
[1645221609999,2.12387668,2783.9,2783.8,0.0193222]
[1645221611602,2.15999952,2783.9,2783.8,0.0193222]
[1645221612902,2.15999952,2783.9,2783.7,0.00195662]
[1645221612903,7.0,2783.8,2783.7,0.00195662]
[1645221613103,0.89899,2783.6,2783.3,0.00782775]
[1645221613303,0.89899,2783.6,2782.6,0.00384647]
[1645221613304,6.431,2783.4,2782.6,0.00384647]
[1645221613501,6.431,2783.0,2782.6,0.01187927]
[1645221613749,0.515,2782.9,2782.6,0.01187927]
[1645221614149,3.31314,2782.9,2782.8,1.44377264]
[1645221614348,3.31314,2782.9,2782.6,0.01187927]
[1645221614349,2.5,2782.8,2782.6,0.01187927]
[1645221614549,6.946,2782.7,2782.6,0.0080328]
[1645221614951,7.25487668,2782.7,2782.6,0.0160656]
[1645221615148,10.05355668,2782.7,2782.6,3.6160656]
[1645221615548,10.05355668,2782.7,2782.4,0.00911036]
[1645221615750,6.431,2782.5,2782.4,0.00911036]
[1645221615950,6.946,2782.5,2782.4,0.00911036]
[1645221616150,8.546,2782.5,2782.4,0.00911036]
[1645221616549,8.85487668,2782.5,2782.4,0.00911036]
[1645221616751,6.29899,2782.4,2782.0,0.00384647]
[1645221616949,6.29899,2782.4,2782.0,0.02206719]
[1645221616950,6.431,2782.2,2782.0,0.02206719]
[1645221617150,0.515,2782.1,2782.0,0.02206719]
[1645221617393,7.946,2782.1,2782.0,0.02206719]
[1645221617599,6.0,2781.9,2781.4,0.0415815]
[1645221617796,6.431,2781.5,2780.6,7.49]
[1645221617995,6.431,2780.9,2780.6,7.49]
[1645221618193,0.515,2780.8,2780.6,7.49]
[1645221618399,0.515,2780.8,2780.7,5.88834911]
[1645221618796,0.515,2780.8,2780.7,0.88834911]
[1645221619197,1.41478,2780.8,2780.7,0.88834911]
[1645221619402,1.41478,2780.8,2780.6,7.49193195]
[1645221619599,1.72365668,2780.8,2780.6,7.49193195]
[1645221619798,1.41478,2780.8,2780.6,7.49193195]
[1645221620100,1.41478,2780.8,2780.6,7.49]
[1645221620297,3.01478,2780.8,2780.3,0.77033489]
[1645221620499,3.9145135,2780.8,2780.3,0.77033489]
[1645221620696,3.9145135,2780.8,2780.3,0.01261638]
[1645221621152,0.89967,2780.5,2780.3,0.01261638]